fUST/lending_fUST_20240813
["ID","MTS","AMOUNT","RATE_DAILY","PERIOD"]
[334735361,1723519847243,-500.0,0.00013972,2]
[334735362,1723519847253,-550.93,0.00013972,2]
[334735363,1723519847263,-1103.37,0.00013972,2]
[334735364,1723519847272,-500.0,0.00013972,2]
[334735365,1723519847282,-4800.36,0.00013972,2]
[334735366,1723519847293,-500.0,0.00013972,2]
[334735367,1723519847303,-687.76,0.00013972,2]
[334735368,1723519847313,-825.24,0.00013972,2]
[334735369,1723519847322,-838.4,0.00013972,2]
[334735370,1723519847331,-500.0,0.00013972,2]
[334735371,1723519847342,-500.0,0.00013972,2]
[334735372,1723519847351,-504.86457116,0.00013972,2]
[334735373,1723519847361,-500.0,0.00013972,2]
[334735374,1723519847371,-806.46,0.00013972,2]
[334735375,1723519847381,-1791.65,0.00013972,2]
[334735376,1723519847390,-500.0,0.00013972,2]
[334735377,1723519847400,-500.0,0.00013972,2]
[334735378,1723519847409,-500.0,0.00013972,2]
[334735379,1723519847418,-169.09394051,0.00013972,2]
[334735380,1723519847428,-507.40482495,0.00013972,2]
[334735381,1723519847437,-710.5,0.00013972,2]
[334735382,1723519847447,-801.59,0.00013972,2]
[334735383,1723519847457,-1041.59,0.00013972,2]
[334735384,1723519847467,-576.07,0.00013972,2]
[334735385,1723519847477,-500.0,0.00013972,2]
[334735386,1723519847486,-860.96,0.00013972,2]
[334735387,1723519847495,-500.0,0.00013972,2]
[334735388,1723519847505,-5033.32,0.00013972,2]
[334735389,1723519847515,-3240.79,0.00013972,2]
[334735390,1723519847525,-500.0,0.00013972,2]
[334735391,1723519847537,-1202.82,0.00013972,2]
[334735392,1723519847550,-500.0,0.00013972,2]
[334735393,1723519847561,-500.0,0.00013972,2]
[334735394,1723519847570,-970.44,0.00013972,2]
[334735395,1723519847580,-500.0,0.00013972,2]
[334735396,1723519847590,-500.0,0.00013972,2]
[334735397,1723519847599,-500.0,0.00013972,2]
[334735398,1723519847611,-983.12,0.00013972,2]
[334735399,1723519847620,-500.0,0.00013972,2]
[334735400,1723519847629,-500.0,0.00013972,2]
[334735401,1723519847639,-800.08,0.00013972,2]
[334735402,1723519847648,-500.0,0.00013972,2]
[334735403,1723519847657,-500.0,0.00013972,2]
[334735404,1723519847667,-502.79947708,0.00013972,2]
[334735405,1723519847676,-500.0,0.00013972,2]
[334735406,1723519847686,-500.0,0.00013972,2]
[334735407,1723519847698,-778.68,0.00013972,2]
[334735408,1723519847708,-500.0,0.00013972,2]
[334735409,1723519847717,-504.16868989,0.00013972,2]
[334735410,1723519847727,-500.0,0.00013972,2]
[334735411,1723519847737,-500.0,0.00013972,2]
[334735412,1723519847747,-500.0,0.00013972,2]
[334735413,1723519847756,-816.07,0.00013972,2]
[334735414,1723519847765,-500.0,0.00013972,2]
[334735415,1723519847776,-615.46,0.00013972,2]
[334735416,1723519847786,-500.0,0.00013972,2]
[334735417,1723519847797,-500.0,0.00013972,2]
[334735418,1723519847807,-500.0,0.00013972,2]
[334735419,1723519847817,-773.65,0.00013972,2]
[334735420,1723519847827,-885.73169076,0.00013972,2]
[334735421,1723519847844,-2192.47830924,0.00013972,2]
[334735422,1723519847854,-500.0,0.00013972,2]
[334735423,1723519847864,-506.47885874,0.00013972,2]
[334735424,1723519847873,-1469.42,0.00013972,2]
[334735425,1723519847882,-500.0,0.00013972,2]
[334735426,1723519847892,-500.0,0.00013972,2]
[334735427,1723519847901,-500.0,0.00013972,2]
[334735428,1723519847911,-500.0,0.00013972,2]
[334735429,1723519847920,-1070.13,0.00013972,2]
[334735430,1723519847929,-500.0,0.00013972,2]
[334735431,1723519847939,-384.39393608,0.00013972,2]
[334735432,1723519847948,-500.0,0.00013972,2]
[334735433,1723519847958,-1045.55,0.00013972,2]
[334735434,1723519847968,-500.0,0.00013972,2]
[334735435,1723519847978,-500.0,0.00013972,2]
[334735436,1723519847988,-500.0,0.00013972,2]
[334735437,1723519847997,-1053.34,0.00013972,2]
[334735438,1723519848007,-500.0,0.00013972,2]
[334735439,1723519848017,-639.24,0.00013972,2]
[334735440,1723519848027,-500.0,0.00013972,2]
[334735441,1723519848036,-321.49756004,0.00013972,2]
[334735442,1723519848046,-549.09,0.00013972,2]
[334735443,1723519848056,-3024.6,0.00013972,2]
[334735444,1723519848066,-939.93,0.00013972,2]
[334735445,1723519848076,-500.0,0.00013972,2]
[334735446,1723519848087,-500.0,0.00013972,2]
[334735447,1723519848096,-500.0,0.00013972,2]
[334735448,1723519848105,-500.0,0.00013972,2]
[334735449,1723519848115,-500.0,0.00013972,2]
[334735450,1723519848126,-500.0,0.00013972,2]
[334735451,1723519848135,-1145.21,0.00013972,2]
[334735452,1723519848145,-157.96829392,0.00013972,2]
[334735453,1723519848155,-500.0,0.00013972,2]
[334735454,1723519848165,-500.0,0.00013972,2]
[334735455,1723519848174,-500.0,0.00013972,2]
[334735456,1723519848184,-699.0,0.00013972,2]
[334735457,1723519848194,-500.0,0.00013972,2]
[334735458,1723519848203,-696.73,0.00013972,2]
[334735459,1723519848212,-1395.63,0.00013972,2]
[334735460,1723519848223,-1102.31,0.00013972,2]
[334735461,1723519848232,-500.0,0.00013972,2]
[334735462,1723519848242,-548.27933941,0.00013972,2]
[334735463,1723519848251,-500.0,0.00013972,2]
[334735464,1723519848261,-666.76,0.00013972,2]
[334735465,1723519848270,-500.0,0.00013972,2]
[334735466,1723519848280,-500.0,0.00013972,2]
[334735467,1723519848290,-518.39715278,0.00013972,2]
[334735468,1723519848301,-1039.17,0.00013972,2]
[334735469,1723519848310,-500.0,0.00013972,2]
[334735470,1723519848320,-616.08,0.00013972,2]
[334735471,1723519848329,-680.47,0.00013972,2]
[334735472,1723519848338,-500.0,0.00013972,2]
[334735473,1723519848348,-500.0,0.00013972,2]
[334735474,1723519848358,-500.0,0.00013972,2]
[334735475,1723519848367,-500.0,0.00013972,2]
[334735476,1723519848377,-1297.63,0.00013972,2]
[334735477,1723519848387,-500.0,0.00013972,2]
[334735478,1723519848396,-1039.14,0.00013972,2]
[334735479,1723519848406,-500.0,0.00013972,2]
[334735480,1723519848416,-500.0,0.00013972,2]
[334735481,1723519848425,-500.0,0.00013972,2]
[334735482,1723519848434,-594.76,0.00013972,2]
[334735483,1723519848443,-316.166336,0.00013972,2]
[334735484,1723519848453,-500.0,0.00013972,2]
[334735485,1723519848463,-316.166336,0.00013972,2]
[334735486,1723519848473,-4482.49,0.00013972,2]
[334735487,1723519848483,-500.0,0.00013972,2]
[334735488,1723519848493,-1221.33,0.00013972,2]
[334735489,1723519848502,-500.0,0.00013972,2]
[334735490,1723519848512,-500.0,0.00013972,2]
[334735491,1723519848522,-500.0,0.00013972,2]
[334735492,1723519848533,-1780.35,0.00013972,2]
[334735493,1723519848545,-712.18,0.00013972,2]
[334735494,1723519848555,-500.0,0.00013972,2]
[334735495,1723519848564,-500.0,0.00013972,2]
[334735496,1723519848574,-2736.37,0.00013972,2]
[334735497,1723519848584,-500.0,0.00013972,2]
[334735498,1723519848593,-918.18,0.00013972,2]
[334735499,1723519848602,-500.0,0.00013972,2]
[334735500,1723519848614,-551.18,0.00013972,2]
[334735501,1723519848624,-500.0,0.00013972,2]
[334735502,1723519848634,-500.0,0.00013972,2]
[334735503,1723519848644,-200.0,0.00013973,2]
[334735504,1723519848654,-200.0,0.00013973,2]
[334735505,1723519848664,-150.112233,0.000141,2]
[334735506,1723519848673,-70085.45628899,0.00014124,2]
[334735507,1723519848683,-500.0,0.00014246,2]
[334735508,1723519848692,-500.0,0.00014246,2]
[334735509,1723519848702,-500.0,0.00014246,2]
[334735510,1723519848712,-497.91750861,0.00014246,2]
[334735511,1723519848721,-500.0,0.00014246,2]
[334735512,1723519848731,-500.0,0.00014246,2]
[334735513,1723519848741,-504.83601221,0.00014246,2]
[334735514,1723519848751,-500.0,0.00014246,2]
[334735515,1723519848761,-500.0,0.00014246,2]
[334735516,1723519848771,-500.0,0.00014246,2]
[334735517,1723519848781,-500.0,0.00014246,2]
[334735518,1723519848791,-500.0,0.00014246,2]
[334735519,1723519848800,-1720.67,0.00014246,2]
[334735520,1723519848809,-500.0,0.00014246,2]
[334735521,1723519848819,-395.18494103,0.00014246,2]
[334735522,1723519848829,-500.0,0.00014246,2]
[334735523,1723519848838,-513.14,0.00014246,2]
[334735524,1723519848848,-514.99872219,0.00014246,2]
[334735525,1723519848858,-500.0,0.00014246,2]
[334735526,1723519848867,-500.0,0.00014246,2]
[334735527,1723519848876,-507.2699207,0.00014246,2]
[334735528,1723519848886,-500.0,0.00014246,2]
[334735529,1723519848895,-500.0,0.00014246,2]
[334735530,1723519848905,-500.0,0.00014246,2]
[334735531,1723519848914,-500.0,0.00014246,2]
[334735532,1723519848923,-500.0,0.00014246,2]
[334735533,1723519848934,-1170.06,0.00014246,2]
[334735534,1723519848943,-500.0,0.00014246,2]
[334735535,1723519848952,-500.0,0.00014246,2]
[334735536,1723519848962,-323.33109887,0.00014246,2]
[334735537,1723519848971,-500.0,0.00014246,2]
[334735538,1723519848980,-500.0,0.00014246,2]
[334735539,1723519848990,-500.0,0.00014246,2]
[334735540,1723519848999,-500.0,0.00014246,2]
[334735541,1723519849008,-500.0,0.00014246,2]
[334735542,1723519849018,-500.0,0.00014246,2]
[334735543,1723519849028,-500.0,0.00014246,2]
[334735544,1723519849041,-500.0,0.00014246,2]
[334735545,1723519849051,-500.0,0.00014246,2]
[334735546,1723519849060,-151.0,0.00014246,2]
[334735547,1723519849070,-405.5421487,0.00014246,2]
[334735548,1723519849080,-519.46229642,0.00014246,2]
[334735549,1723519849089,-586.27,0.00014246,2]
[334735550,1723519849099,-500.0,0.00014246,2]
[334735551,1723519849109,-151.0,0.00014246,2]
[334735552,1723519849119,-151.0,0.00014246,2]
[334735553,1723519849129,-170.21343717,0.00014246,2]
[334735554,1723519849139,-500.0,0.00014246,2]
[334735555,1723519849149,-500.0,0.00014246,2]
[334735556,1723519849160,-500.0,0.00014246,2]
[334735557,1723519849170,-500.0,0.00014246,2]
[334735558,1723519849180,-599.42,0.00014246,2]
[334735559,1723519849189,-151.0,0.00014246,2]
[334735560,1723519849199,-500.0,0.00014246,2]
[334735561,1723519849208,-207.888148,0.00014246,2]
[334735562,1723519849219,-500.0,0.00014246,2]
[334735563,1723519849228,-523.06,0.00014246,2]
[334735564,1723519849238,-500.0,0.00014246,2]
[334735565,1723519849248,-500.0,0.00014246,2]
[334735566,1723519849258,-500.0,0.00014246,2]
[334735567,1723519849268,-500.0,0.00014246,2]
[334735568,1723519849278,-500.0,0.00014246,2]
[334735569,1723519849287,-500.0,0.00014246,2]
[334735570,1723519849304,-500.0,0.00014246,2]
[334735571,1723519849314,-500.0,0.00014246,2]
[334735572,1723519849323,-500.0,0.00014246,2]
[334735573,1723519849335,-500.0,0.00014246,2]
[334735574,1723519849344,-500.0,0.00014246,2]
[334735575,1723519849354,-500.0,0.00014246,2]
[334735576,1723519849364,-752.11,0.00014246,2]
[334735577,1723519849374,-500.0,0.00014246,2]
[334735578,1723519849383,-500.0,0.00014246,2]
[334735579,1723519849393,-500.0,0.00014246,2]
[334735580,1723519849402,-625.4,0.00014246,2]
[334735581,1723519849412,-500.0,0.00014246,2]
[334735582,1723519849422,-500.0,0.00014246,2]
[334735583,1723519849431,-500.0,0.00014246,2]
[334735584,1723519849442,-500.0,0.00014246,2]
[334735585,1723519849451,-500.0,0.00014246,2]
[334735586,1723519849461,-547.48,0.00014246,2]
[334735587,1723519849471,-500.0,0.00014246,2]
[334735588,1723519849480,-507.37735056,0.00014246,2]
[334735589,1723519849489,-506.8747886,0.00014246,2]
[334735590,1723519849498,-500.0,0.00014246,2]
[334735591,1723519849508,-500.0,0.00014246,2]
[334735592,1723519849517,-500.0,0.00014246,2]
[334735593,1723519849527,-550.93,0.00014246,2]
[334735594,1723519849545,-1103.37,0.00014246,2]
[334735595,1723519849554,-500.0,0.00014246,2]
[334735596,1723519849563,-4800.36,0.00014246,2]
[334735597,1723519849573,-500.0,0.00014246,2]
[334735598,1723519849583,-687.76,0.00014246,2]
[334735599,1723519849592,-825.24,0.00014246,2]
[334735600,1723519849602,-838.4,0.00014246,2]
[334735601,1723519849612,-500.0,0.00014246,2]
[334735602,1723519849621,-500.0,0.00014246,2]
[334735603,1723519849630,-500.0,0.00014246,2]
[334735604,1723519849639,-806.46,0.00014246,2]
[334735605,1723519849649,-1791.65,0.00014246,2]
[334735606,1723519849659,-500.0,0.00014246,2]
[334735607,1723519849669,-500.0,0.00014246,2]
[334735608,1723519849678,-500.0,0.00014246,2]
[334735609,1723519849687,-710.5,0.00014246,2]
[334735610,1723519849697,-801.59,0.00014246,2]
[334735611,1723519849706,-1041.59,0.00014246,2]
[334735612,1723519849716,-576.07,0.00014246,2]
[334735613,1723519849725,-500.0,0.00014246,2]
[334735614,1723519849735,-860.96,0.00014246,2]
[334735615,1723519849744,-500.0,0.00014246,2]
[334735616,1723519849754,-5033.32,0.00014246,2]
[334735617,1723519849764,-3240.79,0.00014246,2]
[334735618,1723519849773,-500.0,0.00014246,2]
[334735619,1723519849782,-1202.82,0.00014246,2]
[334735620,1723519849793,-221.53463681,0.00014246,2]
[334735621,1723519849802,-500.0,0.00014246,2]
[334735622,1723519849811,-970.44,0.00014246,2]
[334735623,1723519849820,-500.0,0.00014246,2]
[334735624,1723519849829,-500.0,0.00014246,2]
[334735625,1723519849954,-500.0,0.00014246,2]
[334735626,1723519849964,-983.12,0.00014246,2]
[334735627,1723519849973,-539.85908622,0.00014246,2]
[334735628,1723519849983,-500.0,0.00014246,2]
[334735629,1723519849992,-800.08,0.00014246,2]
[334735630,1723519850003,-500.0,0.00014246,2]
[334735631,1723519850015,-504.60567424,0.00014246,2]
[334735632,1723519850026,-500.0,0.00014246,2]
[334735633,1723519850038,-500.0,0.00014246,2]
[334735634,1723519850053,-778.68,0.00014246,2]
[334735635,1723519850063,-500.0,0.00014246,2]
[334735636,1723519850073,-500.0,0.00014246,2]
[334735637,1723519850082,-500.0,0.00014246,2]
[334735638,1723519850091,-500.0,0.00014246,2]
[334735639,1723519850100,-816.07,0.00014246,2]
[334735640,1723519850110,-500.0,0.00014246,2]
[334735641,1723519850120,-615.46,0.00014246,2]
[334735642,1723519850131,-500.0,0.00014246,2]
[334735643,1723519850143,-500.0,0.00014246,2]
[334735644,1723519850155,-500.0,0.00014246,2]
[334735645,1723519850164,-773.65,0.00014246,2]
[334735646,1723519850173,-3078.21,0.00014246,2]
[334735647,1723519850183,-511.05720352,0.00014246,2]
[334735648,1723519850192,-1469.42,0.00014246,2]
[334735649,1723519850202,-507.57971785,0.00014246,2]
[334735650,1723519850211,-500.0,0.00014246,2]
[334735651,1723519850220,-500.0,0.00014246,2]
[334735652,1723519850230,-500.0,0.00014246,2]
[334735653,1723519850239,-1070.13,0.00014246,2]
[334735654,1723519850248,-500.0,0.00014246,2]
[334735655,1723519850258,-500.0,0.00014246,2]
[334735656,1723519850268,-1045.55,0.00014246,2]
[334735657,1723519850278,-506.17321874,0.00014246,2]
[334735658,1723519850287,-500.0,0.00014246,2]
[334735659,1723519850300,-500.0,0.00014246,2]
[334735660,1723519850309,-1053.34,0.00014246,2]
[334735661,1723519850318,-506.44736509,0.00014246,2]
[334735662,1723519850327,-639.24,0.00014246,2]
[334735663,1723519850337,-500.0,0.00014246,2]
[334735664,1723519850346,-549.09,0.00014246,2]
[334735665,1723519850355,-3024.6,0.00014246,2]
[334735666,1723519850364,-939.93,0.00014246,2]
[334735667,1723519850374,-500.0,0.00014246,2]
[334735668,1723519850383,-500.0,0.00014246,2]
[334735669,1723519850392,-500.0,0.00014246,2]
[334735670,1723519850401,-500.0,0.00014246,2]
[334735671,1723519850411,-500.0,0.00014246,2]
[334735672,1723519850420,-500.0,0.00014246,2]
[334735673,1723519850429,-1145.21,0.00014246,2]
[334735674,1723519850438,-500.0,0.00014246,2]
[334735675,1723519850448,-226.63,0.00014246,2]
[334735676,1723519850457,-699.0,0.00014246,2]
[334735677,1723519850467,-500.0,0.00014246,2]
[334735678,1723519850475,-696.73,0.00014246,2]
[334735679,1723519850485,-1395.63,0.00014246,2]
[334735680,1723519850494,-1102.31,0.00014246,2]
[334735681,1723519850504,-505.9154111,0.00014246,2]
[334735682,1723519850513,-500.0,0.00014246,2]
[334735683,1723519850522,-666.76,0.00014246,2]
[334735684,1723519850532,-500.0,0.00014246,2]
[334735685,1723519850546,-507.38404864,0.00014246,2]
[334735686,1723519850555,-1039.17,0.00014246,2]
[334735687,1723519850565,-500.0,0.00014246,2]
[334735688,1723519850575,-616.08,0.00014246,2]
[334735689,1723519850584,-680.47,0.00014246,2]
[334735690,1723519850593,-500.0,0.00014246,2]
[334735691,1723519850603,-282.29595842,0.00014246,2]
[334735692,1723519850613,-500.0,0.00014246,2]
[334735693,1723519850624,-500.0,0.00014246,2]
[334735694,1723519850636,-1297.63,0.00014246,2]
[334735695,1723519850647,-1039.14,0.00014246,2]
[334735696,1723519850656,-500.0,0.00014246,2]
[334735697,1723519850666,-500.0,0.00014246,2]
[334735698,1723519850676,-507.8117528,0.00014246,2]
[334735699,1723519850685,-594.76,0.00014246,2]
[334735700,1723519850694,-316.166336,0.00014246,2]
[334735701,1723519850703,-500.0,0.00014246,2]
[334735702,1723519850714,-316.166336,0.00014246,2]
[334735703,1723519850724,-4482.49,0.00014246,2]
[334735704,1723519850733,-500.0,0.00014246,2]
[334735705,1723519850744,-1221.33,0.00014246,2]
[334735706,1723519850754,-500.0,0.00014246,2]
[334735707,1723519850764,-500.0,0.00014246,2]
[334735708,1723519850774,-546.2636575,0.00014246,2]
[334735709,1723519850783,-1780.35,0.00014246,2]
[334735710,1723519850794,-712.18,0.00014246,2]
[334735711,1723519850803,-500.0,0.00014246,2]
[334735712,1723519850812,-500.0,0.00014246,2]
[334735713,1723519850823,-2736.37,0.00014246,2]
[334735714,1723519850832,-507.10673943,0.00014246,2]
[334735715,1723519850841,-918.18,0.00014246,2]
[334735716,1723519850851,-502.8470233,0.00014246,2]
[334735717,1723519850859,-551.18,0.00014246,2]
[334735718,1723519850869,-500.0,0.00014246,2]
[334735719,1723519850878,-500.0,0.00014246,2]
[334735720,1723519850889,-218.135985,0.00014247,2]
[334735721,1723519850898,-160.251519,0.00014247,2]
[334735722,1723519850908,-420.0,0.00014299,2]
[334735723,1723519850919,-150.112233,0.000143,2]
[334735724,1723519850932,-500.0,0.0001452,2]
[334735725,1723519850944,-500.0,0.0001452,2]
[334735726,1723519850954,-500.0,0.0001452,2]
[334735727,1723519850963,-500.0,0.0001452,2]
[334735728,1723519850972,-500.0,0.0001452,2]
[334735729,1723519850982,-500.0,0.0001452,2]
[334735730,1723519850992,-1720.67,0.0001452,2]
[334735731,1723519851001,-500.0,0.0001452,2]
[334735732,1723519851010,-513.14,0.0001452,2]
[334735733,1723519851020,-500.0,0.0001452,2]
[334735734,1723519851029,-500.0,0.0001452,2]
[334735735,1723519851039,-500.0,0.0001452,2]
[334735736,1723519851055,-500.0,0.0001452,2]
[334735737,1723519851064,-324.31541479,0.0001452,2]
[334735738,1723519851074,-500.0,0.0001452,2]
[334735739,1723519851083,-500.0,0.0001452,2]
[334735740,1723519851092,-1170.06,0.0001452,2]
[334735741,1723519851101,-500.0,0.0001452,2]
[334735742,1723519851110,-500.0,0.0001452,2]
[334735743,1723519851120,-500.0,0.0001452,2]
[334735744,1723519851129,-500.0,0.0001452,2]
[334735745,1723519851138,-402.81282407,0.0001452,2]
[334735746,1723519851147,-500.0,0.0001452,2]
[334735747,1723519851157,-500.0,0.0001452,2]
[334735748,1723519851166,-170.37764516,0.0001452,2]
[334735749,1723519851175,-500.0,0.0001452,2]
[334735750,1723519851184,-586.27,0.0001452,2]
[334735751,1723519851194,-184.45677048,0.0001452,2]
[334735752,1723519851203,-500.0,0.0001452,2]
[334735753,1723519851213,-500.0,0.0001452,2]
[334735754,1723519851222,-500.0,0.0001452,2]
[334735755,1723519851231,-599.42,0.0001452,2]
[334735756,1723519851240,-500.0,0.0001452,2]
[334735757,1723519851250,-500.0,0.0001452,2]
[334735758,1723519851259,-523.06,0.0001452,2]
[334735759,1723519851269,-500.0,0.0001452,2]
[334735760,1723519851278,-500.0,0.0001452,2]
[334735761,1723519851287,-500.0,0.0001452,2]
[334735762,1723519851297,-500.0,0.0001452,2]
[334735763,1723519851306,-500.0,0.0001452,2]
[334735764,1723519851317,-500.0,0.0001452,2]
[334735765,1723519851328,-500.0,0.0001452,2]
[334735766,1723519851340,-500.0,0.0001452,2]
[334735767,1723519851352,-500.0,0.0001452,2]
[334735768,1723519851362,-500.0,0.0001452,2]
[334735769,1723519851373,-500.0,0.0001452,2]
[334735770,1723519851382,-500.0,0.0001452,2]
[334735771,1723519851392,-752.11,0.0001452,2]
[334735772,1723519851401,-500.0,0.0001452,2]
[334735773,1723519851411,-500.0,0.0001452,2]
[334735774,1723519851420,-625.4,0.0001452,2]
[334735775,1723519851430,-500.0,0.0001452,2]
[334735776,1723519851440,-500.0,0.0001452,2]
[334735777,1723519851449,-500.0,0.0001452,2]
[334735778,1723519851458,-151.0,0.0001452,2]
[334735779,1723519851468,-151.0,0.0001452,2]
[334735780,1723519851477,-226.97947662,0.0001452,2]
[334735781,1723519851486,-153.638147,0.0001452,2]
[334735782,1723519851496,-500.0,0.0001452,2]
[334735783,1723519851506,-547.48,0.0001452,2]
[334735784,1723519851517,-500.0,0.0001452,2]
[334735785,1723519851527,-151.0,0.0001452,2]
[334735786,1723519851543,-639.4133917,0.0001452,2]
[334735787,1723519851552,-151.0,0.0001452,2]
[334735788,1723519851562,-500.0,0.0001452,2]
[334735789,1723519851571,-404.35291,0.0001452,2]
[334735790,1723519851582,-404.35291,0.0001452,2]
[334735791,1723519851592,-500.0,0.0001452,2]
[334735792,1723519851602,-550.93,0.0001452,2]
[334735793,1723519851612,-1103.37,0.0001452,2]
[334735794,1723519851622,-500.0,0.0001452,2]
[334735795,1723519851632,-157.608899,0.0001452,2]
[334735796,1723519851641,-4800.36,0.0001452,2]
[334735797,1723519851651,-500.0,0.0001452,2]
[334735798,1723519851660,-157.608899,0.0001452,2]
[334735799,1723519851669,-687.76,0.0001452,2]
[334735800,1723519851679,-825.24,0.0001452,2]
[334735801,1723519851689,-838.4,0.0001452,2]
[334735802,1723519851699,-500.0,0.0001452,2]
[334735803,1723519851709,-500.0,0.0001452,2]
[334735804,1723519851719,-309.620587,0.0001452,2]
[334735805,1723519851729,-500.0,0.0001452,2]
[334735806,1723519851738,-309.620587,0.0001452,2]
[334735807,1723519851748,-806.46,0.0001452,2]
[334735808,1723519851757,-1791.65,0.0001452,2]
[334735809,1723519851766,-500.0,0.0001452,2]
[334735810,1723519851775,-500.0,0.0001452,2]
[334735811,1723519851785,-710.5,0.0001452,2]
[334735812,1723519851796,-801.59,0.0001452,2]
[334735813,1723519851806,-1041.59,0.0001452,2]
[334735814,1723519851815,-576.07,0.0001452,2]
[334735815,1723519851824,-500.0,0.0001452,2]
[334735816,1723519851834,-860.96,0.0001452,2]
[334735817,1723519851843,-500.0,0.0001452,2]
[334735818,1723519851852,-5033.32,0.0001452,2]
[334735819,1723519851861,-3240.79,0.0001452,2]
[334735820,1723519851870,-500.0,0.0001452,2]
[334735821,1723519851880,-1202.82,0.0001452,2]
[334735822,1723519851889,-500.0,0.0001452,2]
[334735823,1723519851898,-970.44,0.0001452,2]
[334735824,1723519851907,-156.570451,0.0001452,2]
[334735825,1723519851917,-500.0,0.0001452,2]
[334735826,1723519851926,-500.0,0.0001452,2]
[334735827,1723519851935,-500.0,0.0001452,2]
[334735828,1723519851945,-983.12,0.0001452,2]
[334735829,1723519851954,-156.570451,0.0001452,2]
[334735830,1723519851964,-500.0,0.0001452,2]
[334735831,1723519851973,-800.08,0.0001452,2]
[334735832,1723519851983,-500.0,0.0001452,2]
[334735833,1723519851992,-152.613029,0.0001452,2]
[334735834,1723519852002,-500.0,0.0001452,2]
[334735835,1723519852011,-778.68,0.0001452,2]
[334735836,1723519852021,-500.0,0.0001452,2]
[334735837,1723519852031,-403.78973464,0.0001452,2]
[334735838,1723519852044,-500.0,0.0001452,2]
[334735839,1723519852053,-500.0,0.0001452,2]
[334735840,1723519852062,-363.009966,0.0001452,2]
[334735841,1723519852072,-816.07,0.0001452,2]
[334735842,1723519852082,-363.009966,0.0001452,2]
[334735843,1723519852091,-500.0,0.0001452,2]
[334735844,1723519852100,-615.46,0.0001452,2]
[334735845,1723519852109,-500.0,0.0001452,2]
[334735846,1723519852119,-151.0,0.0001452,2]
[334735847,1723519852130,-712.409026,0.0001452,2]
[334735848,1723519852140,-507.01753029,0.0001452,2]
[334735849,1723519852151,-773.65,0.0001452,2]
[334735850,1723519852161,-3078.21,0.0001452,2]
[334735851,1723519852171,-712.409026,0.0001452,2]
[334735852,1723519852180,-151.0,0.0001452,2]
[334735853,1723519852189,-1469.42,0.0001452,2]
[334735854,1723519852199,-500.0,0.0001452,2]
[334735855,1723519852209,-500.0,0.0001452,2]
[334735856,1723519852218,-1070.13,0.0001452,2]
[334735857,1723519852227,-500.0,0.0001452,2]
[334735858,1723519852236,-500.0,0.0001452,2]
[334735859,1723519852246,-1045.55,0.0001452,2]
[334735860,1723519852255,-500.0,0.0001452,2]